[Event "Titled Tuesday Blitz October 11 Early 2022"]
[White "Kuznetsova, Olga"]
[Black "Averjanov, Alexey"]
[WhiteFideId "4191323"]
[BlackFideId "14109867"]
[WhiteElo "2134"]
[BlackElo "2682"]
[Result "1-0"]
[Round "05"]
[TimeControl "180+1"]
[Date "2022.10.12"]
[WhiteClock "0:00:32"]
[BlackClock "0:00:17"]

1. d4 {[%clk 0:02:57]}  d5 {[%clk 0:02:59]} 2. Bf4 {[%clk 0:02:56]}  Nf6 {[%clk 0:02:59]} 3. e3 {[%clk 0:02:56]}  e6 {[%clk 0:02:59]} 4. Nd2 {[%clk 0:02:56]}  c5 {[%clk 0:02:59]} 5. c3 {[%clk 0:02:56]}  Bd6 {[%clk 0:02:59]} 6. Bg3 {[%clk 0:02:55]}  Qc7 {[%clk 0:02:58]} 7. Ngf3 {[%clk 0:02:50]}  Nbd7 {[%clk 0:02:58]} 8. Bd3 {[%clk 0:02:50]}  O-O {[%clk 0:02:57]} 9. e4 {[%clk 0:02:45]}  dxe4 {[%clk 0:02:55]} 10. Nxe4 {[%clk 0:02:46]}  Nxe4 {[%clk 0:02:56]} 11. Bxe4 {[%clk 0:02:46]}  Nf6 {[%clk 0:02:55]} 12. Bc2 {[%clk 0:02:46]}  b6 {[%clk 0:02:48]} 13. O-O {[%clk 0:02:44]}  Bb7 {[%clk 0:02:46]} 14. dxc5 {[%clk 0:02:27]}  Bxg3 {[%clk 0:02:45]} 15. hxg3 {[%clk 0:02:27]}  Qxc5 {[%clk 0:02:45]} 16. Qd4 {[%clk 0:02:28]}  Qh5 {[%clk 0:02:40]} 17. Bd1 {[%clk 0:01:49]}  Ng4 {[%clk 0:02:37]} 18. Nh4 {[%clk 0:01:45]}  f5 {[%clk 0:02:31]} 19. Bf3 {[%clk 0:01:22]}  Rad8 {[%clk 0:01:51]} 20. Qc4 {[%clk 0:01:16]}  Bd5 {[%clk 0:01:51]} 21. Bxd5 {[%clk 0:01:13]}  exd5 {[%clk 0:01:52]} 22. Qc7 {[%clk 0:01:07]}  Rc8 {[%clk 0:01:17]} 23. Qd6 {[%clk 0:01:07]}  Rcd8 {[%clk 0:01:14]} 24. Qe6+ {[%clk 0:01:04]}  Kh8 {[%clk 0:01:13]} 25. Rfe1 {[%clk 0:01:04]}  Rf6 {[%clk 0:01:00]} 26. Qe7 {[%clk 0:00:59]}  Rg8 {[%clk 0:00:55]} 27. Nf3 {[%clk 0:00:54]}  Rh6 {[%clk 0:00:52]} 28. Nh4 {[%clk 0:00:33]}  g5 {[%clk 0:00:45]} 29. f3 {[%clk 0:00:26]}  gxh4 {[%clk 0:00:40]} 30. fxg4 {[%clk 0:00:25]}  fxg4 {[%clk 0:00:32]} 31. Re6 {[%clk 0:00:23]}  hxg3 {[%clk 0:00:20]} 32. Rxh6 {[%clk 0:00:23]}  Qxh6 {[%clk 0:00:21]} 33. Qe5+ {[%clk 0:00:24]}  Qg7 {[%clk 0:00:21]} 34. Qxg3 {[%clk 0:00:24]}  d4 {[%clk 0:00:18]} 35. Re1 {[%clk 0:00:23]}  dxc3 {[%clk 0:00:17]} 36. bxc3 {[%clk 0:00:24]}  Qf6 {[%clk 0:00:17]} 37. Qe3 {[%clk 0:00:20]}  h5 {[%clk 0:00:15]} 38. Rf1 {[%clk 0:00:20]}  Qg7 {[%clk 0:00:11]} 39. Rf5 {[%clk 0:00:20]}  Qg6 {[%clk 0:00:09]} 40. Qe5+ {[%clk 0:00:20]}  Rg7 {[%clk 0:00:08]} 41. Rxh5+ {[%clk 0:00:18]}  Kg8 {[%clk 0:00:09]} 42. Qd5+ {[%clk 0:00:18]}  Qf7 {[%clk 0:00:07]} 43. Qd8+ {[%clk 0:00:19]}  Qf8 {[%clk 0:00:07]} 44. Qd5+ {[%clk 0:00:19]}  Qf7 {[%clk 0:00:07]} 45. Qa8+ {[%clk 0:00:18]}  Qf8 {[%clk 0:00:07]} 46. Rh8+ {[%clk 0:00:18]}  Kxh8 {[%clk 0:00:07]} 47. Qxf8+ {[%clk 0:00:19]}  Kh7 {[%clk 0:00:07]} 48. Qf5+ {[%clk 0:00:19]}  Kh6 {[%clk 0:00:07]} 49. Kf2 {[%clk 0:00:19]}  Rg5 {[%clk 0:00:06]} 50. Qf6+ {[%clk 0:00:19]}  Kh5 {[%clk 0:00:06]} 51. Kg3 {[%clk 0:00:19]}  Rc5 {[%clk 0:00:05]} 52. Qf7+ {[%clk 0:00:18]}  Kg5 {[%clk 0:00:06]} 53. Qe7+ {[%clk 0:00:19]}  Kf5 {[%clk 0:00:06]} 54. Qe3 {[%clk 0:00:19]}  Rc4 {[%clk 0:00:04]} 55. Qd3+ {[%clk 0:00:20]}  Re4 {[%clk 0:00:04]} 56. Kf2 {[%clk 0:00:19]}  Kf4 {[%clk 0:00:04]} 57. g3+ {[%clk 0:00:19]}  Ke5 {[%clk 0:00:04]} 58. Qd8 {[%clk 0:00:19]}  Rc4 {[%clk 0:00:04]} 59. Qe7+ {[%clk 0:00:20]}  Kd5 {[%clk 0:00:03]} 60. Qf7+ {[%clk 0:00:20]}  Kc5 {[%clk 0:00:04]} 61. Qe7+ {[%clk 0:00:19]}  Kb5 {[%clk 0:00:05]} 62. Qa3 {[%clk 0:00:19]}  a5 {[%clk 0:00:04]} 63. Qb3+ {[%clk 0:00:19]}  Kc5 {[%clk 0:00:05]} 64. a4 {[%clk 0:00:20]}  Kd5 {[%clk 0:00:04]} 65. Qb5+ {[%clk 0:00:20]}  Rc5 {[%clk 0:00:04]} 66. Qxb6 {[%clk 0:00:20]}  Rxc3 {[%clk 0:00:05]} 67. Qxa5+ {[%clk 0:00:21]}  Rc5 {[%clk 0:00:05]} 68. Qxc5+ {[%clk 0:00:20]}  Kxc5 {[%clk 0:00:06]} 69. Ke3 {[%clk 0:00:21]}  Kb4 {[%clk 0:00:06]} 70. Kf4 {[%clk 0:00:22]}  Kxa4 {[%clk 0:00:07]} 71. Kxg4 {[%clk 0:00:23]}  Kb5 {[%clk 0:00:08]} 72. Kf5 {[%clk 0:00:23]}  Kc6 {[%clk 0:00:09]} 73. g4 {[%clk 0:00:24]}  Kd7 {[%clk 0:00:10]} 74. Kf6 {[%clk 0:00:24]}  Ke8 {[%clk 0:00:11]} 75. Kg7 {[%clk 0:00:25]}  Ke7 {[%clk 0:00:11]} 76. g5 {[%clk 0:00:26]}  Ke6 {[%clk 0:00:12]} 77. g6 {[%clk 0:00:27]}  Kf5 {[%clk 0:00:12]} 78. Kh7 {[%clk 0:00:28]}  Kf6 {[%clk 0:00:12]} 79. g7 {[%clk 0:00:29]}  Kg5 {[%clk 0:00:13]} 80. g8=Q+ {[%clk 0:00:30]}  Kf5 {[%clk 0:00:14]} 81. Qg6+ {[%clk 0:00:30]}  Kf4 {[%clk 0:00:14]} 82. Qe6 {[%clk 0:00:30]}  Kg5 {[%clk 0:00:15]} 83. Kg7 {[%clk 0:00:30]}  Kf4 {[%clk 0:00:15]} 84. Kg6 {[%clk 0:00:30]}  Kf3 {[%clk 0:00:15]} 85. Kg5 {[%clk 0:00:31]}  Kg3 {[%clk 0:00:15]} 86. Qe3+ {[%clk 0:00:31]}  Kh2 {[%clk 0:00:15]} 87. Kg4 {[%clk 0:00:31]}  Kh1 {[%clk 0:00:16]} 88. Qd2 {[%clk 0:00:31]}  Kg1 {[%clk 0:00:16]} 89. Kg3 {[%clk 0:00:32]}  Kf1 {[%clk 0:00:17]} 90. Qf2# {[%clk 0:00:32]} 1-0


[Site "https://www.chess.com"]

[Event "Titled Tuesday Blitz October 11 Early 2022"]
[White "Leiva, Gianmarco"]
[Black "Di Nicolantonio, Lucas"]
[WhiteFideId "3804399"]
[BlackFideId "680460"]
[WhiteElo "2757"]
[BlackElo "2576"]
[Result "1-0"]
[Round "05"]
[TimeControl "180+1"]
[Date "2022.10.12"]
[WhiteClock "0:00:28"]
[BlackClock "0:00:08"]

1. e4 {[%clk 0:02:58]}  c6 {[%clk 0:02:57]} 2. d4 {[%clk 0:02:57]}  d5 {[%clk 0:02:58]} 3. e5 {[%clk 0:02:58]}  c5 {[%clk 0:02:59]} 4. dxc5 {[%clk 0:02:57]}  e6 {[%clk 0:02:59]} 5. a3 {[%clk 0:02:57]}  Bxc5 {[%clk 0:02:59]} 6. Qg4 {[%clk 0:02:56]}  Ne7 {[%clk 0:02:56]} 7. Bd3 {[%clk 0:02:56]}  Nbc6 {[%clk 0:02:48]} 8. Nf3 {[%clk 0:02:56]}  Ng6 {[%clk 0:02:46]} 9. Qg3 {[%clk 0:02:50]}  a6 {[%clk 0:02:39]} 10. b4 {[%clk 0:02:31]}  Ba7 {[%clk 0:02:37]} 11. Bb2 {[%clk 0:02:27]}  Bb8 {[%clk 0:02:26]} 12. O-O {[%clk 0:02:00]}  O-O {[%clk 0:02:22]} 13. Re1 {[%clk 0:01:56]}  Bd7 {[%clk 0:02:00]} 14. Nbd2 {[%clk 0:01:47]}  Nce7 {[%clk 0:02:00]} 15. h4 {[%clk 0:01:34]}  Bb5 {[%clk 0:01:50]} 16. h5 {[%clk 0:01:21]}  Bxd3 {[%clk 0:01:51]} 17. cxd3 {[%clk 0:01:21]}  Nf5 {[%clk 0:01:50]} 18. Qh2 {[%clk 0:01:00]}  Ngh4 {[%clk 0:01:38]} 19. g4 {[%clk 0:00:56]}  Nxf3+ {[%clk 0:01:29]} 20. Nxf3 {[%clk 0:00:57]}  Ne7 {[%clk 0:01:22]} 21. h6 {[%clk 0:00:52]}  g6 {[%clk 0:01:04]} 22. Bc1 {[%clk 0:00:31]}  f6 {[%clk 0:00:57]} 23. Bf4 {[%clk 0:00:30]}  Nc6 {[%clk 0:00:42]} 24. Ra2 {[%clk 0:00:31]}  fxe5 {[%clk 0:00:33]} 25. Nxe5 {[%clk 0:00:31]}  Rxf4 {[%clk 0:00:32]} 26. Qxf4 {[%clk 0:00:30]}  Nxe5 {[%clk 0:00:28]} 27. Rxe5 {[%clk 0:00:31]}  Bxe5 {[%clk 0:00:14]} 28. Qxe5 {[%clk 0:00:31]}  Qd7 {[%clk 0:00:13]} 29. Rc2 {[%clk 0:00:29]}  Rf8 {[%clk 0:00:08]} 30. Rc7 {[%clk 0:00:28]} 1-0


[Site "https://www.chess.com"]

[Event "Titled Tuesday Blitz October 11 Early 2022"]
[White "Manon-og, Ramon Jr."]
[Black "Jaskolka, Tomasz"]
[WhiteFideId "5200776"]
[BlackFideId "1170791"]
[WhiteElo "2237"]
[BlackElo "2126"]
[Result "0-1"]
[Round "05"]
[TimeControl "180+1"]
[Date "2022.10.12"]
[WhiteClock "0:00:08"]
[BlackClock "0:00:13"]

1. e4 {[%clk 0:03:00]}  c5 {[%clk 0:02:57]} 2. Nf3 {[%clk 0:03:00]}  e6 {[%clk 0:02:57]} 3. g3 {[%clk 0:03:00]}  Nc6 {[%clk 0:02:55]} 4. Bg2 {[%clk 0:02:58]}  Nf6 {[%clk 0:02:55]} 5. Nc3 {[%clk 0:02:57]}  d5 {[%clk 0:02:51]} 6. exd5 {[%clk 0:02:57]}  exd5 {[%clk 0:02:52]} 7. d4 {[%clk 0:02:58]}  cxd4 {[%clk 0:02:48]} 8. Nxd4 {[%clk 0:02:58]}  Bg4 {[%clk 0:02:47]} 9. Qd3 {[%clk 0:02:52]}  Bc5 {[%clk 0:02:18]} 10. Nxc6 {[%clk 0:02:47]}  bxc6 {[%clk 0:02:17]} 11. O-O {[%clk 0:02:47]}  O-O {[%clk 0:02:17]} 12. Bg5 {[%clk 0:02:46]}  h6 {[%clk 0:02:13]} 13. Bf4 {[%clk 0:02:46]}  Qd7 {[%clk 0:02:04]} 14. Rfe1 {[%clk 0:02:38]}  Rfe8 {[%clk 0:02:03]} 15. Be5 {[%clk 0:02:23]}  Bf5 {[%clk 0:01:54]} 16. Qd2 {[%clk 0:02:19]}  Ng4 {[%clk 0:01:10]} 17. Bd4 {[%clk 0:02:19]}  Bxd4 {[%clk 0:01:07]} 18. Qxd4 {[%clk 0:02:19]}  Nf6 {[%clk 0:00:59]} 19. Qd2 {[%clk 0:01:57]}  Qd6 {[%clk 0:00:56]} 20. Na4 {[%clk 0:01:20]}  Ne4 {[%clk 0:00:48]} 21. Qa5 {[%clk 0:01:11]}  Qf6 {[%clk 0:00:41]} 22. c3 {[%clk 0:01:00]}  Rab8 {[%clk 0:00:33]} 23. Qxa7 {[%clk 0:00:56]}  Bg6 {[%clk 0:00:25]} 24. Qd4 {[%clk 0:00:49]}  Qxd4 {[%clk 0:00:22]} 25. cxd4 {[%clk 0:00:50]}  Rb4 {[%clk 0:00:22]} 26. b3 {[%clk 0:00:45]}  Rxd4 {[%clk 0:00:20]} 27. Rac1 {[%clk 0:00:40]}  Rd2 {[%clk 0:00:15]} 28. Rxc6 {[%clk 0:00:39]}  Rxa2 {[%clk 0:00:12]} 29. Nc5 {[%clk 0:00:34]}  Rc2 {[%clk 0:00:08]} 30. b4 {[%clk 0:00:28]}  Rb8 {[%clk 0:00:07]} 31. Rc7 {[%clk 0:00:16]}  Rxb4 {[%clk 0:00:05]} 32. Rc6 {[%clk 0:00:12]}  Rxc5 {[%clk 0:00:02]} 33. Ra6 {[%clk 0:00:11]}  Kh7 {[%clk 0:00:02]} 34. h4 {[%clk 0:00:10]}  Rc2 {[%clk 0:00:02]} 35. h5 {[%clk 0:00:08]}  Bxh5 {[%clk 0:00:02]} 36. Rxe4 {[%clk 0:00:07]}  dxe4 {[%clk 0:00:03]} 37. Bxe4+ {[%clk 0:00:06]}  Rxe4 {[%clk 0:00:04]} 38. Ra5 {[%clk 0:00:05]}  Bf3 {[%clk 0:00:03]} 39. Ra1 {[%clk 0:00:03]}  Rce2 {[%clk 0:00:04]} 40. Kh2 {[%clk 0:00:03]}  Re1 {[%clk 0:00:04]} 41. Rxe1 {[%clk 0:00:03]}  Rxe1 {[%clk 0:00:05]} 42. g4 {[%clk 0:00:04]}  Rf1 {[%clk 0:00:05]} 43. Kg3 {[%clk 0:00:04]}  Bxg4 {[%clk 0:00:06]} 44. Kxg4 {[%clk 0:00:04]}  Rxf2 {[%clk 0:00:07]} 45. Kh5 {[%clk 0:00:04]}  Rf6 {[%clk 0:00:07]} 46. Kg4 {[%clk 0:00:05]}  Rg6+ {[%clk 0:00:08]} 47. Kh5 {[%clk 0:00:05]}  Rg5+ {[%clk 0:00:09]} 48. Kh4 {[%clk 0:00:06]}  f5 {[%clk 0:00:10]} 49. Kh3 {[%clk 0:00:06]}  f4 {[%clk 0:00:10]} 50. Kh4 {[%clk 0:00:07]}  f3 {[%clk 0:00:11]} 51. Kh3 {[%clk 0:00:07]}  f2 {[%clk 0:00:12]} 52. Kh4 {[%clk 0:00:07]}  Kg6 {[%clk 0:00:12]} 53. Kh3 {[%clk 0:00:07]}  f1=Q+ {[%clk 0:00:13]} 54. Kh4 {[%clk 0:00:08]}  Qh1# {[%clk 0:00:13]} 0-1


[Site "https://www.chess.com"]

[Event "Titled Tuesday Blitz October 11 Early 2022"]
[White "Manukian, Artak"]
[Black "Samant Aditya S"]
[WhiteFideId "13301373"]
[BlackFideId "35080580"]
[WhiteElo "2502"]
[BlackElo "2367"]
[Result "1/2-1/2"]
[Round "05"]
[TimeControl "180+1"]
[Date "2022.10.12"]
[WhiteClock "0:00:26"]
[BlackClock "0:00:06"]

1. e4 {[%clk 0:02:59]}  c5 {[%clk 0:03:00]} 2. Nf3 {[%clk 0:02:59]}  d6 {[%clk 0:03:00]} 3. Bb5+ {[%clk 0:02:58]}  Bd7 {[%clk 0:02:58]} 4. Bxd7+ {[%clk 0:02:58]}  Qxd7 {[%clk 0:02:59]} 5. c4 {[%clk 0:02:59]}  Nf6 {[%clk 0:02:58]} 6. Nc3 {[%clk 0:02:58]}  g6 {[%clk 0:02:59]} 7. d4 {[%clk 0:02:58]}  cxd4 {[%clk 0:03:00]} 8. Nxd4 {[%clk 0:02:59]}  Bg7 {[%clk 0:03:01]} 9. f3 {[%clk 0:02:59]}  O-O {[%clk 0:03:01]} 10. Be3 {[%clk 0:02:59]}  Nc6 {[%clk 0:02:54]} 11. O-O {[%clk 0:02:56]}  e6 {[%clk 0:02:49]} 12. Qd2 {[%clk 0:02:52]}  Rfd8 {[%clk 0:02:49]} 13. Rfd1 {[%clk 0:02:51]}  d5 {[%clk 0:02:43]} 14. Nxc6 {[%clk 0:02:48]}  bxc6 {[%clk 0:02:42]} 15. cxd5 {[%clk 0:02:34]}  exd5 {[%clk 0:02:25]} 16. e5 {[%clk 0:02:33]}  Ne8 {[%clk 0:02:25]} 17. f4 {[%clk 0:02:33]}  Nc7 {[%clk 0:02:21]} 18. Na4 {[%clk 0:02:24]}  Ne6 {[%clk 0:02:09]} 19. Nc5 {[%clk 0:02:22]}  Nxc5 {[%clk 0:02:08]} 20. Bxc5 {[%clk 0:02:23]}  f6 {[%clk 0:02:04]} 21. exf6 {[%clk 0:02:13]}  Bxf6 {[%clk 0:02:05]} 22. Bd4 {[%clk 0:02:13]}  Bxd4+ {[%clk 0:01:50]} 23. Qxd4 {[%clk 0:02:14]}  Qg7 {[%clk 0:01:49]} 24. Rac1 {[%clk 0:02:11]}  Qxd4+ {[%clk 0:01:25]} 25. Rxd4 {[%clk 0:02:11]}  Rac8 {[%clk 0:01:26]} 26. b4 {[%clk 0:02:10]}  Kf7 {[%clk 0:01:24]} 27. Rc5 {[%clk 0:01:51]}  Ke6 {[%clk 0:01:24]} 28. Ra5 {[%clk 0:01:40]}  Rc7 {[%clk 0:01:25]} 29. Kf2 {[%clk 0:01:35]}  Kd6 {[%clk 0:01:21]} 30. Ke3 {[%clk 0:01:32]}  Re8+ {[%clk 0:01:18]} 31. Kd2 {[%clk 0:01:32]}  Rb8 {[%clk 0:01:13]} 32. a3 {[%clk 0:01:31]}  Rb5 {[%clk 0:01:07]} 33. Ra6 {[%clk 0:01:28]}  Rb6 {[%clk 0:01:07]} 34. Ra5 {[%clk 0:01:28]}  Rb5 {[%clk 0:01:08]} 35. Ra6 {[%clk 0:01:29]}  Rb6 {[%clk 0:00:42]} 36. Ra5 {[%clk 0:01:28]}  c5 {[%clk 0:00:36]} 37. bxc5+ {[%clk 0:01:23]}  Rxc5 {[%clk 0:00:37]} 38. Rxc5 {[%clk 0:01:24]}  Kxc5 {[%clk 0:00:37]} 39. Ra4 {[%clk 0:01:20]}  Rb2+ {[%clk 0:00:32]} 40. Ke3 {[%clk 0:01:18]}  Rxg2 {[%clk 0:00:29]} 41. Rxa7 {[%clk 0:01:17]}  Rxh2 {[%clk 0:00:29]} 42. a4 {[%clk 0:01:17]}  Rh3+ {[%clk 0:00:25]} 43. Kf2 {[%clk 0:01:14]}  Kd4 {[%clk 0:00:19]} 44. Kg2 {[%clk 0:01:06]}  Ra3 {[%clk 0:00:15]} 45. Rxh7 {[%clk 0:01:03]}  Rxa4 {[%clk 0:00:16]} 46. Kg3 {[%clk 0:01:03]}  Ke3 {[%clk 0:00:10]} 47. Rd7 {[%clk 0:00:42]}  d4 {[%clk 0:00:09]} 48. Re7+ {[%clk 0:00:39]}  Kd2 {[%clk 0:00:09]} 49. Re6 {[%clk 0:00:40]}  Ra1 {[%clk 0:00:07]} 50. Kf2 {[%clk 0:00:34]}  d3 {[%clk 0:00:04]} 51. Rxg6 {[%clk 0:00:33]}  Ra5 {[%clk 0:00:05]} 52. Rg5 {[%clk 0:00:25]}  Rxg5 {[%clk 0:00:02]} 53. fxg5 {[%clk 0:00:25]}  Kc2 {[%clk 0:00:03]} 54. g6 {[%clk 0:00:26]}  d2 {[%clk 0:00:03]} 55. g7 {[%clk 0:00:26]}  d1=Q {[%clk 0:00:04]} 56. g8=Q {[%clk 0:00:27]}  Qd2+ {[%clk 0:00:05]} 57. Kf3 {[%clk 0:00:27]}  Qd1+ {[%clk 0:00:06]} 58. Kf4 {[%clk 0:00:27]}  Qf1+ {[%clk 0:00:06]} 59. Ke5 {[%clk 0:00:26]}  Qe2+ {[%clk 0:00:06]} 60. Kd6 {[%clk 0:00:26]}  Qd3+ {[%clk 0:00:07]} 61. Qd5 {[%clk 0:00:25]}  Qxd5+ {[%clk 0:00:06]} 62. Kxd5 {[%clk 0:00:26]} 1/2-1/2


[Site "https://www.chess.com"]

[Event "Titled Tuesday Blitz October 11 Early 2022"]
[White "Mihailidis, Anastasios"]
[Black "Ronka, Erik"]
[WhiteFideId "4205588"]
[BlackFideId "505080"]
[WhiteElo "2312"]
[BlackElo "2264"]
[Result "1-0"]
[Round "05"]
[TimeControl "180+1"]
[Date "2022.10.12"]
[WhiteClock "0:02:58"]
[BlackClock "0:02:20"]

1. e4 {[%clk 0:03:00]}  c6 {[%clk 0:02:57]} 2. d4 {[%clk 0:03:00]}  d5 {[%clk 0:02:58]} 3. exd5 {[%clk 0:03:00]}  cxd5 {[%clk 0:02:59]} 4. Bd3 {[%clk 0:03:00]}  Nf6 {[%clk 0:02:59]} 5. c3 {[%clk 0:03:01]}  Bg4 {[%clk 0:02:59]} 6. Qb3 {[%clk 0:03:01]}  Qd7 {[%clk 0:02:49]} 7. Bf4 {[%clk 0:02:59]}  Nc6 {[%clk 0:02:47]} 8. Nd2 {[%clk 0:02:59]}  e6 {[%clk 0:02:47]} 9. Ngf3 {[%clk 0:03:00]}  Bd6 {[%clk 0:02:48]} 10. Bxd6 {[%clk 0:02:59]}  Qxd6 {[%clk 0:02:49]} 11. O-O {[%clk 0:03:00]}  O-O {[%clk 0:02:48]} 12. Qxb7 {[%clk 0:03:00]}  Rab8 {[%clk 0:02:34]} 13. Qa6 {[%clk 0:03:00]}  Rxb2 {[%clk 0:02:33]} 14. Bb5 {[%clk 0:03:00]}  Bxf3 {[%clk 0:02:20]} 15. Nxf3 {[%clk 0:02:58]} 1-0


[Site "https://www.chess.com"]

[Event "Titled Tuesday Blitz October 11 Early 2022"]
[White "Mindlin, Alon"]
[Black "Martin Carmona, Gaston Manuel"]
[WhiteFideId "2800071"]
[BlackFideId "22284567"]
[WhiteElo "2417"]
[BlackElo "2235"]
[Result "1-0"]
[Round "05"]
[TimeControl "180+1"]
[Date "2022.10.12"]
[WhiteClock "0:01:47"]
[BlackClock "0:00:04"]

1. d4 {[%clk 0:03:00]}  Nf6 {[%clk 0:02:56]} 2. c4 {[%clk 0:02:59]}  g6 {[%clk 0:02:51]} 3. Nc3 {[%clk 0:02:59]}  Bg7 {[%clk 0:02:52]} 4. e4 {[%clk 0:02:59]}  d6 {[%clk 0:02:53]} 5. f3 {[%clk 0:02:59]}  O-O {[%clk 0:02:53]} 6. Be3 {[%clk 0:03:00]}  c5 {[%clk 0:02:54]} 7. d5 {[%clk 0:02:58]}  e6 {[%clk 0:02:11]} 8. Qd2 {[%clk 0:02:55]}  exd5 {[%clk 0:02:07]} 9. cxd5 {[%clk 0:02:56]}  a6 {[%clk 0:02:03]} 10. a4 {[%clk 0:02:56]}  Re8 {[%clk 0:02:01]} 11. Be2 {[%clk 0:02:55]}  Qc7 {[%clk 0:01:57]} 12. Rc1 {[%clk 0:02:54]}  Nbd7 {[%clk 0:01:11]} 13. Nh3 {[%clk 0:02:46]}  Ne5 {[%clk 0:01:08]} 14. Nf2 {[%clk 0:02:46]}  h5 {[%clk 0:01:07]} 15. O-O {[%clk 0:02:45]}  h4 {[%clk 0:01:06]} 16. b4 {[%clk 0:02:34]}  cxb4 {[%clk 0:00:36]} 17. Nb5 {[%clk 0:02:31]}  Qa5 {[%clk 0:00:36]} 18. Nc7 {[%clk 0:02:29]}  Bd7 {[%clk 0:00:37]} 19. Nxa8 {[%clk 0:02:25]}  Rxa8 {[%clk 0:00:38]} 20. h3 {[%clk 0:02:13]}  Bxa4 {[%clk 0:00:37]} 21. f4 {[%clk 0:02:11]}  Ned7 {[%clk 0:00:37]} 22. Ra1 {[%clk 0:02:08]}  b5 {[%clk 0:00:36]} 23. Bf3 {[%clk 0:02:03]}  Rc8 {[%clk 0:00:31]} 24. Bd4 {[%clk 0:02:03]}  Rc4 {[%clk 0:00:29]} 25. e5 {[%clk 0:02:02]}  Ne8 {[%clk 0:00:20]} 26. Be2 {[%clk 0:02:01]}  dxe5 {[%clk 0:00:12]} 27. fxe5 {[%clk 0:02:00]}  Rxd4 {[%clk 0:00:09]} 28. Qxd4 {[%clk 0:02:00]}  Bxe5 {[%clk 0:00:10]} 29. Qe3 {[%clk 0:01:59]}  Nd6 {[%clk 0:00:09]} 30. Rac1 {[%clk 0:01:56]}  Kg7 {[%clk 0:00:09]} 31. Ng4 {[%clk 0:01:56]}  Bc3 {[%clk 0:00:07]} 32. Qh6+ {[%clk 0:01:56]}  Kg8 {[%clk 0:00:06]} 33. Qxh4 {[%clk 0:01:49]}  Qb6+ {[%clk 0:00:05]} 34. Kh1 {[%clk 0:01:49]}  Qd4 {[%clk 0:00:04]} 35. Nh6+ {[%clk 0:01:47]} 1-0


[Site "https://www.chess.com"]

[Event "Titled Tuesday Blitz October 11 Early 2022"]
[White "Molina, Roberto Junio Brito"]
[Black "Malek, Jan"]
[WhiteFideId "2109450"]
[BlackFideId "21864080"]
[WhiteElo "2388"]
[BlackElo "2255"]
[Result "0-1"]
[Round "05"]
[TimeControl "180+1"]
[Date "2022.10.11"]
[WhiteClock "0:00:01"]
[BlackClock "0:00:04"]

1. d4 {[%clk 0:03:00]}  Nf6 {[%clk 0:02:59]} 2. Nf3 {[%clk 0:03:00]}  c5 {[%clk 0:02:59]} 3. e3 {[%clk 0:03:01]}  d5 {[%clk 0:02:56]} 4. c3 {[%clk 0:03:00]}  e6 {[%clk 0:02:51]} 5. Bd3 {[%clk 0:03:00]}  Bd6 {[%clk 0:02:50]} 6. O-O {[%clk 0:02:59]}  b6 {[%clk 0:02:51]} 7. Nbd2 {[%clk 0:02:59]}  Bb7 {[%clk 0:02:52]} 8. Qe2 {[%clk 0:02:59]}  Nbd7 {[%clk 0:02:42]} 9. e4 {[%clk 0:02:58]}  dxe4 {[%clk 0:02:41]} 10. Nxe4 {[%clk 0:02:56]}  Nxe4 {[%clk 0:02:41]} 11. Bxe4 {[%clk 0:02:54]}  Bxe4 {[%clk 0:02:39]} 12. Qxe4 {[%clk 0:02:55]}  O-O {[%clk 0:02:39]} 13. Rd1 {[%clk 0:02:52]}  Nf6 {[%clk 0:02:37]} 14. Qe2 {[%clk 0:02:48]}  cxd4 {[%clk 0:02:36]} 15. Rxd4 {[%clk 0:02:47]}  Qc7 {[%clk 0:02:35]} 16. Bg5 {[%clk 0:02:46]}  Rad8 {[%clk 0:02:30]} 17. Rad1 {[%clk 0:02:45]}  Bc5 {[%clk 0:02:28]} 18. Bxf6 {[%clk 0:02:41]}  gxf6 {[%clk 0:02:26]} 19. R4d2 {[%clk 0:02:34]}  Be7 {[%clk 0:02:14]} 20. Nd4 {[%clk 0:02:29]}  Qb7 {[%clk 0:02:04]} 21. Qf3 {[%clk 0:02:20]}  Qxf3 {[%clk 0:02:01]} 22. Nxf3 {[%clk 0:02:21]}  Rxd2 {[%clk 0:01:58]} 23. Nxd2 {[%clk 0:02:20]}  Rd8 {[%clk 0:01:59]} 24. Kf1 {[%clk 0:02:20]}  f5 {[%clk 0:01:56]} 25. Ke2 {[%clk 0:02:20]}  Kg7 {[%clk 0:01:55]} 26. f4 {[%clk 0:02:13]}  f6 {[%clk 0:01:46]} 27. a4 {[%clk 0:02:08]}  Rd5 {[%clk 0:01:44]} 28. Nf3 {[%clk 0:01:58]}  Rxd1 {[%clk 0:01:42]} 29. Kxd1 {[%clk 0:01:59]}  Bd6 {[%clk 0:01:42]} 30. g3 {[%clk 0:01:58]}  e5 {[%clk 0:01:42]} 31. Nh4 {[%clk 0:01:57]}  Bc5 {[%clk 0:01:30]} 32. fxe5 {[%clk 0:01:37]}  fxe5 {[%clk 0:01:30]} 33. Nxf5+ {[%clk 0:01:37]}  Kf6 {[%clk 0:01:30]} 34. Nh4 {[%clk 0:01:37]}  e4 {[%clk 0:01:27]} 35. Ke2 {[%clk 0:01:37]}  Bg1 {[%clk 0:01:23]} 36. h3 {[%clk 0:01:37]}  Bc5 {[%clk 0:01:16]} 37. Ng2 {[%clk 0:01:31]}  Bd6 {[%clk 0:01:05]} 38. Kf2 {[%clk 0:01:29]}  Bc5+ {[%clk 0:01:05]} 39. Ne3 {[%clk 0:01:26]}  h5 {[%clk 0:00:59]} 40. g4 {[%clk 0:01:18]}  hxg4 {[%clk 0:00:55]} 41. hxg4 {[%clk 0:01:17]}  Kg5 {[%clk 0:00:55]} 42. Ke2 {[%clk 0:01:17]}  Kf4 {[%clk 0:00:54]} 43. Nd5+ {[%clk 0:01:09]}  Kxg4 {[%clk 0:00:52]} 44. b4 {[%clk 0:01:08]}  Bd6 {[%clk 0:00:44]} 45. Ke3 {[%clk 0:01:07]}  Kf5 {[%clk 0:00:43]} 46. Kd4 {[%clk 0:01:01]}  Be5+ {[%clk 0:00:40]} 47. Ke3 {[%clk 0:00:58]}  Bd6 {[%clk 0:00:34]} 48. c4 {[%clk 0:00:48]}  Ke5 {[%clk 0:00:31]} 49. Nc3 {[%clk 0:00:47]}  Bxb4 {[%clk 0:00:30]} 50. Nxe4 {[%clk 0:00:47]}  Bc5+ {[%clk 0:00:26]} 51. Kd3 {[%clk 0:00:43]}  Kf4 {[%clk 0:00:24]} 52. Nc3 {[%clk 0:00:40]}  Kf3 {[%clk 0:00:23]} 53. Nb5 {[%clk 0:00:35]}  a5 {[%clk 0:00:23]} 54. Nc7 {[%clk 0:00:35]}  Kf4 {[%clk 0:00:22]} 55. Ne6+ {[%clk 0:00:33]}  Kf3 {[%clk 0:00:21]} 56. Ng5+ {[%clk 0:00:30]}  Kf4 {[%clk 0:00:21]} 57. Ne4 {[%clk 0:00:31]}  Kf3 {[%clk 0:00:22]} 58. Nd2+ {[%clk 0:00:29]}  Kf4 {[%clk 0:00:22]} 59. Nb3 {[%clk 0:00:30]}  Kf3 {[%clk 0:00:23]} 60. Nc1 {[%clk 0:00:27]}  Kf2 {[%clk 0:00:20]} 61. Ke4 {[%clk 0:00:20]}  Ba3 {[%clk 0:00:20]} 62. Nd3+ {[%clk 0:00:19]}  Ke2 {[%clk 0:00:20]} 63. Kd4 {[%clk 0:00:18]}  Kd2 {[%clk 0:00:19]} 64. Nf4 {[%clk 0:00:17]}  Kc2 {[%clk 0:00:17]} 65. Kd5 {[%clk 0:00:14]}  Kb3 {[%clk 0:00:17]} 66. Kc6 {[%clk 0:00:15]}  Bc5 {[%clk 0:00:16]} 67. Nd5 {[%clk 0:00:15]}  Kxc4 {[%clk 0:00:14]} 68. Nc7 {[%clk 0:00:04]}  Kb4 {[%clk 0:00:13]} 69. Kd5 {[%clk 0:00:05]}  Kxa4 {[%clk 0:00:10]} 70. Kc4 {[%clk 0:00:06]}  Ka3 {[%clk 0:00:06]} 71. Nb5+ {[%clk 0:00:06]}  Kb2 {[%clk 0:00:06]} 72. Nc3 {[%clk 0:00:06]}  Ka3 {[%clk 0:00:05]} 73. Nb5+ {[%clk 0:00:06]}  Kb2 {[%clk 0:00:04]} 74. Nc3 {[%clk 0:00:06]}  Bg1 {[%clk 0:00:05]} 75. Ne2 {[%clk 0:00:05]}  a4 {[%clk 0:00:04]} 76. Nxg1 {[%clk 0:00:01]}  a3 {[%clk 0:00:04]} 0-1


[Site "https://www.chess.com"]